[Event "DVM U10 2024"]
[Site "Duesseldorf"]
[Date "2024.12.27"]
[Round "3"]
[White "Schacht, Jakob Otto"]
[Black "Boeskov, Steffen"]
[Result "0-1"]
[ECO "C45"]
[WhiteElo "1064"]
[BlackElo "1933"]
[Annotator "RC"]
[PlyCount "90"]
[EventDate "2024.12.23"]
[EventType "team-tourn"]
[EventRounds "7"]
[EventCountry "GER"]
[SourceTitle "playchess.com"]
[Source "ChessBase"]
[SourceQuality "1"]
[TimeControl "3300+5"]

1. e4 {[%emt 0:00:03]} e5 {[%emt 0:00:04]} 2. Nf3 {[%emt 0:00:15]} Nc6 {[%emt 0:00:20]} 3. d4 {[%emt 0:00:07]} exd4 {[%emt 0:00:12]} 4. Nxd4 {[%emt 0:00:08]} Nxd4 {[%emt 0:00:18]} 5. Qxd4 {[%emt 0:00:06]} Qe7 {[%emt 0:00:21]} 6. Nc3 {[%emt 0:00:11]} Qb4 {[%emt 0:00:23]} 7. Qxb4 {[%emt 0:00:34]} Bxb4 {[%emt 0:00:08]} 8. Bd2 {[%emt 0:00:06]} d6 {[%emt 0:00:13]} 9. O-O-O {[%emt 0:00:13]} Bxc3 {[%emt 0:00:33]} 10. Bxc3 {[%emt 0:00:11]} Nf6 {[%emt 0:00:09]} 11. e5 {[%emt 0:00:23]} Ne4 {[%emt 0:00:38]} 12. Bd4 {[%emt 0:00:36]} dxe5 {[%emt 0:00:23]} 13. f3 {[%emt 0:00:10]} exd4 {[%emt 0:00:23]} 14. fxe4 {[%emt 0:00:07]} Bd7 {[%emt 0:00:22]} 15. Rxd4 {[%emt 0:00:15]} Rd8 {[%emt 0:00:16]} 16. Bc4 {[%emt 0:00:35]} Bc6 {[%emt 0:00:23]} 17. Rhd1 {[%emt 0:00:35]} Rxd4 {[%emt 0:00:25]} 18. Rxd4 {[%emt 0:00:10]} Ke7 {[%emt 0:00:19]} 19. Kd2 {[%emt 0:00:20]} Rd8 {[%emt 0:00:31]} 20. Ke3 {[%emt 0:00:22]} Rxd4 {[%emt 0:00:37]} 21. Kxd4 {[%emt 0:00:07]} b5 {[%emt 0:00:09]} 22. Bb3 {[%emt 0:00:23]} f5 {[%emt 0:00:25]} 23. exf5 {[%emt 0:00:54]} Kf6 {[%emt 0:00:17]} 24. Be6 {[%emt 0:00:20]} Bxg2 {[%emt 0:00:26]} 25. Kc5 {[%emt 0:00:10]} g6 {[%emt 0:00:31]} 26. Bd5 {[%emt 0:00:25]} Bxd5 {[%emt 0:00:20]} 27. Kxd5 {[%emt 0:00:06]} Kxf5 {[%emt 0:00:11]} 28. Kc5 {[%emt 0:00:14]} a6 {[%emt 0:00:20]} 29. Kc6 {[%emt 0:00:10]} h5 {[%emt 0:00:43]} 30. Kxc7 {[%emt 0:00:07]} g5 {[%emt 0:00:12]} 31. Kb6 {[%emt 0:00:05]} h4 {[%emt 0:00:07]} 32. Kxa6 {[%emt 0:00:04]} g4 {[%emt 0:00:34]} 33. Kxb5 {[%emt 0:00:13]} g3 {[%emt 0:00:06]} 34. c4 {[%emt 0:00:05]} gxh2 {[%emt 0:00:07]} 35. c5 {[%emt 0:00:05]} h1=Q {[%emt 0:00:17]} 36. c6 {[%emt 0:00:11]} Qc1 {[%emt 0:00:07]} 37. b4 {[%emt 0:00:13]} Ke6 {[%emt 0:00:46]} 38. Kb6 {[%emt 0:00:13]} Kd6 {[%emt 0:00:05]} 39. b5 {[%emt 0:00:08]} Qc5+ {[%emt 0:00:30]} 40. Ka6 {[%emt 0:00:53]} Qa3+ {[%emt 0:00:07]} 41. Kb7 {[%emt 0:00:25]} Qc5 {[%emt 0:00:44]} 42. a4 {[%emt 0:00:25]} h3 {[%emt 0:00:23]} 43. Ka6 {[%emt 0:00:31]} Kc7 {[%emt 0:00:32]} 44. a5 {[%emt 0:00:15]} Kb8 {[%emt 0:00:19]} 45. b6 {[%emt 0:00:27]} Qc4# {[%emt 0:00:23]} 0-1

[Event "DVM U10 2024"]
[Site "Duesseldorf"]
[Date "2024.12.27"]
[Round "3"]
[White "Steffen, Leon"]
[Black "Glavev, Victor"]
[Result "0-1"]
[ECO "C50"]
[WhiteElo "1058"]
[BlackElo "1443"]
[Annotator "NA RC"]
[PlyCount "36"]
[EventDate "2024.12.23"]
[EventType "team-tourn"]
[EventRounds "7"]
[EventCountry "GER"]
[SourceTitle "playchess.com"]
[Source "ChessBase"]
[SourceQuality "1"]
[TimeControl "3300+5"]

1. e4 {[%emt 0:00:01]} e5 {[%emt 0:00:03]} 2. Nf3 {[%emt 0:00:05]} Nc6 {[%emt 0:00:03]} 3. Bc4 {[%emt 0:00:10]} Bc5 {[%emt 0:00:05]} 4. O-O {[%emt 0:00:10]} Nf6 {[%emt 0:00:02]} 5. d3 {[%emt 0:00:15]} h6 {[%emt 0:00:06]} 6. Nc3 {[%emt 0:00:22]} d6 {[%emt 0:00:25]} 7. a3 {[%emt 0:00:16]} Bg4 {[%emt 0:00:09]} 8. h3 {[%emt 0:00:17]} Bh5 {[%emt 0:00:02]} 9. b4 {[%emt 0:00:34]} Bb6 {[%emt 0:00:11]} 10. Be3 {[%emt 0:00:24]} Nd4 {[%emt 0:00:08]} 11. a4 {[%emt 0:00:57]} Bxf3 {[%emt 0:00:14]} 12. gxf3 {[%emt 0:01:03]} Qd7 {[%emt 0:00:44]} 13. a5 {[%emt 0:00:23]} Qxh3 {[%emt 0:00:10]} 14. Bxd4 {[%emt 0:00:50]} Bxd4 {[%emt 0:00:09]} 15. Ra3 {[%emt 0:00:28]} Nh5 {[%emt 0:00:27]} 16. Nd5 {[%emt 0:00:39]} O-O {[%emt 0:00:13]} 17. Nxc7 {[%emt 0:01:11]} Nf4 {[%emt 0:00:06]} 18. Re1 {[%emt 0:02:25]} Qg2# {[%emt 0:00:08]} 0-1

[Event "DVM U10 2024"]
[Site "Duesseldorf"]
[Date "2024.12.27"]
[Round "3"]
[White "Müller, Charlie Erik"]
[Black "Kolesnikoff, Christophe"]
[Result "0-1"]
[ECO "C54"]
[WhiteElo "1043"]
[BlackElo "980"]
[Annotator "NA RC"]
[PlyCount "80"]
[EventDate "2024.12.23"]
[EventType "team-tourn"]
[EventRounds "7"]
[EventCountry "GER"]
[SourceTitle "playchess.com"]
[Source "ChessBase"]
[SourceQuality "1"]
[TimeControl "3300+5"]

1. e4 {[%emt 0:00:00]} e5 {[%emt 0:00:06]} 2. Nf3 {[%emt 0:00:05]} Nc6 {[%emt 0:00:08]} 3. Bc4 {[%emt 0:00:04]} Nf6 {[%emt 0:00:15]} 4. d3 {[%emt 0:00:09]} Bc5 {[%emt 0:00:09]} 5. c3 {[%emt 0:00:08]} d6 {[%emt 0:00:14]} 6. Bg5 {[%emt 0:00:49]} h6 {[%emt 0:00:11]} 7. Be3 {[%emt 0:00:44]} Bb6 {[%emt 0:00:12]} 8. d4 {[%emt 0:00:22]} exd4 {[%emt 0:00:18]} 9. cxd4 {[%emt 0:00:07]} Ba5+ {[%emt 0:00:37]} 10. Bd2 {[%emt 0:00:50]} Nxe4 {[%emt 0:00:29]} 11. O-O {[%emt 0:00:29]} O-O {[%emt 0:00:46]} 12. Bd5 {[%emt 0:01:15]} Nxd2 {[%emt 0:00:48]} 13. Nbxd2 {[%emt 0:00:10]} Bg4 {[%emt 0:00:54]} 14. Ne4 {[%emt 0:02:16]} Nb4 {[%emt 0:00:55]} 15. Qb3 {[%emt 0:00:55]} Bxf3 {[%emt 0:00:47]} 16. gxf3 {[%emt 0:00:28]} Nxd5 {[%emt 0:00:23]} 17. Qxd5 {[%emt 0:00:14]} Bb6 {[%emt 0:00:58]} 18. Rad1 {[%emt 0:00:43]} Rb8 {[%emt 0:02:12]} 19. Rd3 {[%emt 0:01:03]} Re8 {[%emt 0:02:27]} 20. f4 {[%emt 0:01:09]} Qh4 {[%emt 0:00:56]} 21. Kg2 {[%emt 0:05:27]} Qxf4 {[%emt 0:00:44]} 22. Re1 {[%emt 0:02:26]} Re6 {[%emt 0:01:15]} 23. Qh5 {[%emt 0:01:37]} Rxe4 {[%emt 0:01:37]} 24. Rf3 {[%emt 0:00:51]} Qg4+ {[%emt 0:01:24]} 25. Qxg4 {[%emt 0:01:28]} Rxg4+ {[%emt 0:00:09]} 26. Kh3 {[%emt 0:00:08]} Rxd4 {[%emt 0:00:36]} 27. Re7 {[%emt 0:00:30]} Rf8 {[%emt 0:00:16]} 28. Rg3 {[%emt 0:00:34]} Rd2 {[%emt 0:01:05]} 29. Re4 {[%emt 0:00:21]} f5 {[%emt 0:00:42]} 30. Re6 {[%emt 0:00:20]} Bxf2 {[%emt 0:01:27]} 31. Rg2 {[%emt 0:00:13]} f4 {[%emt 0:00:37]} 32. Reg6 {[%emt 0:00:25]} Rf7 {[%emt 0:00:30]} 33. Re6 {[%emt 0:00:29]} f3 {[%emt 0:00:13]} 34. Rg4 {[%emt 0:01:40]} Bd4 {[%emt 0:00:14]} 35. Re8+ {[%emt 0:01:16]} Rf8 {[%emt 0:00:38]} 36. Rxf8+ {[%emt 0:00:24]} Kxf8 {[%emt 0:00:35]} 37. Rf4+ {[%emt 0:00:06]} Ke7 {[%emt 0:00:43]} 38. Rxf3 {[%emt 0:00:10]} Rxb2 {[%emt 0:00:45]} 39. Rf4 {[%emt 0:00:29]} Be5 {[%emt 0:00:14]} 40. Rg4 {[%emt 0:00:42]} Rxh2# {[%emt 0:00:19]} 0-1

[Event "DVM U10 2024"]
[Site "Duesseldorf"]
[Date "2024.12.27"]
[Round "3"]
[White "von der Thüsen, Gottfried"]
[Black "Nickel, Alexander"]
[Result "0-1"]
[ECO "D30"]
[WhiteElo "1041"]
[BlackElo "1200"]
[Annotator "NA"]
[PlyCount "68"]
[EventDate "2024.12.23"]
[EventType "team-tourn"]
[EventRounds "7"]
[EventCountry "GER"]
[SourceTitle "playchess.com"]
[Source "ChessBase"]
[SourceQuality "1"]
[TimeControl "3300+5"]

1. d4 {[%emt 0:00:18]} d5 {[%emt 0:00:16]} 2. c4 {[%emt 0:00:15]} e6 {[%emt 0:00:03]} 3. Nf3 {[%emt 0:00:21]} Nd7 {[%emt 0:01:13]} 4. c5 {[%emt 0:00:57]} c6 {[%emt 0:00:08]} 5. e3 {[%emt 0:00:10]} Ngf6 {[%emt 0:01:05]} 6. Be2 {[%emt 0:00:59]} Be7 {[%emt 0:00:14]} 7. O-O {[%emt 0:02:07]} O-O {[%emt 0:00:22]} 8. Bd3 {[%emt 0:01:00]} Re8 {[%emt 0:00:56]} 9. Re1 {[%emt 0:00:14]} h6 {[%emt 0:01:00]} 10. e4 {[%emt 0:00:39]} Nf8 {[%emt 0:02:39]} 11. e5 {[%emt 0:01:56]} N6h7 {[%emt 0:05:00]} 12. Bxh7+ {[%emt 0:00:12]} Kxh7 {[%emt 0:00:05]} 13. Nfd2 {[%emt 0:01:37]} Ng6 {[%emt 0:00:51]} 14. Re3 {[%emt 0:00:19]} Bg5 {[%emt 0:00:02]} 15. Rf3 {[%emt 0:00:37]} f5 {[%emt 0:00:30]} 16. exf6 {[%emt 0:00:29]} gxf6 {[%emt 0:01:13]} 17. Qc2 {[%emt 0:00:48]} f5 {[%emt 0:00:12]} 18. Nc3 {[%emt 0:00:25]} Qf6 {[%emt 0:03:38]} 19. g4 {[%emt 0:05:11]} Qg7 {[%emt 0:02:01]} 20. gxf5 {[%emt 0:02:56]} exf5 {[%emt 0:00:15]} 21. Nf1 {[%emt 0:01:09]} Bd8 {[%emt 0:05:25]} 22. Re3 {[%emt 0:02:51]} Rxe3 {[%emt 0:00:57]} 23. Nxe3 {[%emt 0:00:34]} Kh8 {[%emt 0:02:50]} 24. Kf1 {[%emt 0:06:20]} Nf4 {[%emt 0:00:59]} 25. Nxf5 {[%emt 0:00:49]} Qg2+ {[%emt 0:05:15]} 26. Ke1 {[%emt 0:00:38]} Qg1+ {[%emt 0:00:13]} 27. Kd2 {[%emt 0:00:28]} Qxf2+ {[%emt 0:00:07]} 28. Kd1 {[%emt 0:00:22]} Qg1+ {[%emt 0:00:49]} 29. Kd2 {[%emt 0:01:04]} Qxh2+ {[%emt 0:00:16]} 30. Kd1 {[%emt 0:00:41]} Qh5+ {[%emt 0:00:20]} 31. Ke1 {[%emt 0:00:29]} Bxf5 {[%emt 0:01:03]} 32. Qd2 {[%emt 0:00:45]} Qh1+ {[%emt 0:00:32]} 33. Kf2 {[%emt 0:00:35]} Qg2+ {[%emt 0:00:08]} 34. Ke3 {[%emt 0:00:24]} Qg3# {[%emt 0:01:08]} 0-1

[Event "DVM U10 2024"]
[Site "Duesseldorf"]
[Date "2024.12.27"]
[Round "3"]
[White "Mettenbrink, Tammo"]
[Black "Wilting, Oskar"]
[Result "0-1"]
[ECO "B22"]
[WhiteElo "1029"]
[BlackElo "1454"]
[Annotator "NA RC"]
[PlyCount "70"]
[EventDate "2024.12.23"]
[EventType "team-tourn"]
[EventRounds "7"]
[EventCountry "GER"]
[SourceTitle "playchess.com"]
[Source "ChessBase"]
[SourceQuality "1"]
[TimeControl "3300+5"]

1. e4 {[%emt 0:00:04]} c5 {[%emt 0:00:06]} 2. c3 {[%emt 0:00:23]} Nf6 {[%emt 0:00:10]} 3. e5 {[%emt 0:00:12]} Nd5 {[%emt 0:00:10]} 4. d4 {[%emt 0:00:11]} cxd4 {[%emt 0:00:08]} 5. cxd4 {[%emt 0:00:21]} e6 {[%emt 0:00:16]} 6. Bc4 {[%emt 0:00:09]} Nb6 {[%emt 0:00:46]} 7. Bd3 {[%emt 0:00:25]} Nc6 {[%emt 0:01:14]} 8. Nf3 {[%emt 0:00:18]} Nd5 {[%emt 0:01:51]} 9. O-O {[%emt 0:00:32]} a6 {[%emt 0:01:10]} 10. Bd2 {[%emt 0:00:34]} b5 {[%emt 0:01:14]} 11. Nc3 {[%emt 0:00:21]} Nce7 {[%emt 0:00:37]} 12. Be4 {[%emt 0:00:58]} Bb7 {[%emt 0:00:21]} 13. Bg5 {[%emt 0:00:39]} Nxc3 {[%emt 0:00:27]} 14. bxc3 {[%emt 0:00:38]} Bxe4 {[%emt 0:00:11]} 15. Qe2 {[%emt 0:00:33]} Bb7 {[%emt 0:00:30]} 16. Qe3 {[%emt 0:01:56]} Qc7 {[%emt 0:02:13]} 17. Rac1 {[%emt 0:00:46]} Nd5 {[%emt 0:00:34]} 18. Qd3 {[%emt 0:00:49]} Qc4 {[%emt 0:00:53]} 19. Qc2 {[%emt 0:00:55]} Ba3 {[%emt 0:00:59]} 20. Rcd1 {[%emt 0:00:35]} Qxc3 {[%emt 0:00:31]} 21. Qxc3 {[%emt 0:00:15]} Nxc3 {[%emt 0:00:19]} 22. Rd3 {[%emt 0:00:10]} Bb4 {[%emt 0:00:12]} 23. Bd2 {[%emt 0:00:21]} Nd5 {[%emt 0:00:28]} 24. Bxb4 {[%emt 0:00:38]} Nxb4 {[%emt 0:00:11]} 25. Ra3 {[%emt 0:00:15]} O-O {[%emt 0:00:18]} 26. Rb1 {[%emt 0:01:00]} Rac8 {[%emt 0:00:35]} 27. Nd2 {[%emt 0:00:40]} Nd5 {[%emt 0:00:24]} 28. Rg3 {[%emt 0:00:22]} Rc2 {[%emt 0:00:23]} 29. Nf3 {[%emt 0:00:26]} Rfc8 {[%emt 0:00:11]} 30. h3 {[%emt 0:00:37]} Nf4 {[%emt 0:00:59]} 31. Rg4 {[%emt 0:00:36]} Bxf3 {[%emt 0:01:32]} 32. Rxf4 {[%emt 0:01:26]} Rc1+ {[%emt 0:00:31]} 33. Rxc1 {[%emt 0:00:24]} Rxc1+ {[%emt 0:00:11]} 34. Kh2 {[%emt 0:00:09]} Bd5 {[%emt 0:00:12]} 35. Rg4 {[%emt 0:00:27]} Bb7 {[%emt 0:00:50]} 0-1

[Event "DVM U10 2024"]
[Site "Duesseldorf"]
[Date "2024.12.27"]
[Round "3"]
[White "Zhukov, Eli"]
[Black "Torgoev, Timur"]
[Result "1-0"]
[ECO "C50"]
[WhiteElo "1018"]
[BlackElo "1153"]
[Annotator "NA RC"]
[PlyCount "63"]
[EventDate "2024.12.23"]
[EventType "team-tourn"]
[EventRounds "7"]
[EventCountry "GER"]
[SourceTitle "playchess.com"]
[Source "ChessBase"]
[SourceQuality "1"]
[TimeControl "3300+5"]

1. e4 {[%emt 0:00:00]} e5 {[%emt 0:00:05]} 2. Nf3 {[%emt 0:00:08]} Nc6 {[%emt 0:00:07]} 3. Bc4 {[%emt 0:00:16]} Nf6 {[%emt 0:00:24]} 4. d3 {[%emt 0:00:11]} Bc5 {[%emt 0:01:11]} 5. O-O {[%emt 0:00:41]} O-O {[%emt 0:00:11]} 6. Bg5 {[%emt 0:00:07]} d6 {[%emt 0:00:18]} 7. h3 {[%emt 0:00:12]} Nd4 {[%emt 0:01:19]} 8. Nxd4 {[%emt 0:00:48]} Bxd4 {[%emt 0:00:18]} 9. c3 {[%emt 0:00:09]} Bb6 {[%emt 0:00:32]} 10. Nd2 {[%emt 0:01:42]} h6 {[%emt 0:00:16]} 11. Bh4 {[%emt 0:00:09]} g5 {[%emt 0:00:45]} 12. Bg3 {[%emt 0:00:36]} Re8 {[%emt 0:00:53]} 13. Qb3 {[%emt 0:00:56]} Be6 {[%emt 0:00:12]} 14. Nf3 {[%emt 0:03:08]} Nh5 {[%emt 0:00:46]} 15. d4 {[%emt 0:01:54]} exd4 {[%emt 0:00:30]} 16. cxd4 {[%emt 0:00:51]} Bxc4 {[%emt 0:00:26]} 17. Qxc4 {[%emt 0:00:24]} Rxe4 {[%emt 0:00:30]} 18. Qd5 {[%emt 0:00:26]} Qe8 {[%emt 0:02:03]} 19. Nxg5 {[%emt 0:01:25]} hxg5 {[%emt 0:00:40]} 20. Qxg5+ {[%emt 0:00:19]} Ng7 {[%emt 0:00:12]} 21. f4 {[%emt 0:00:54]} Bxd4+ {[%emt 0:00:16]} 22. Kh2 {[%emt 0:00:14]} Re2 {[%emt 0:01:03]} 23. Rae1 {[%emt 0:01:59]} Bxb2 {[%emt 0:01:28]} 24. Rxe2 {[%emt 0:00:25]} Qxe2 {[%emt 0:00:09]} 25. Rf2 {[%emt 0:00:25]} Qd1 {[%emt 0:01:23]} 26. Rxb2 {[%emt 0:00:19]} Re8 {[%emt 0:00:24]} 27. Rxb7 {[%emt 0:00:39]} Kf8 {[%emt 0:00:44]} 28. Rxc7 {[%emt 0:00:22]} d5 {[%emt 0:00:12]} 29. Qf6 {[%emt 0:00:38]} Qh5 {[%emt 0:00:15]} 30. Qh4 {[%emt 0:01:20]} Nf5 {[%emt 0:01:28]} 31. Qxh5 {[%emt 0:00:21]} Re7 {[%emt 0:00:15]} 32. Qh8# {[%emt 0:00:33]} 1-0

[Event "DVM U10 2024"]
[Site "Duesseldorf"]
[Date "2024.12.27"]
[Round "3"]
[White "Obermeier, Vitus"]
[Black "Möller, Lia Sofie"]
[Result "1-0"]
[ECO "D06"]
[WhiteElo "982"]
[BlackElo "829"]
[Annotator "NA RC"]
[PlyCount "33"]
[EventDate "2024.12.23"]
[EventType "team-tourn"]
[EventRounds "7"]
[EventCountry "GER"]
[SourceTitle "playchess.com"]
[Source "ChessBase"]
[SourceQuality "1"]
[TimeControl "3300+5"]

1. d4 {[%emt 0:00:02]} d5 {[%emt 0:00:15]} 2. c4 {[%emt 0:00:05]} Nf6 {[%emt 0:00:07]} 3. Bg5 {[%emt 0:00:26]} h6 {[%emt 0:00:03]} 4. Bh4 {[%emt 0:00:09]} b6 {[%emt 0:00:22]} 5. g3 {[%emt 0:00:23]} g5 {[%emt 0:00:33]} 6. Bg2 {[%emt 0:00:22]} gxh4 {[%emt 0:00:22]} 7. cxd5 {[%emt 0:00:06]} Nxd5 {[%emt 0:00:13]} 8. e4 {[%emt 0:00:16]} Nf6 {[%emt 0:00:21]} 9. e5 {[%emt 0:00:22]} h3 {[%emt 0:00:38]} 10. Bxa8 {[%emt 0:00:24]} Bg4 {[%emt 0:00:54]} 11. f3 {[%emt 0:00:22]} Be6 {[%emt 0:00:58]} 12. exf6 {[%emt 0:00:11]} exf6 {[%emt 0:00:31]} 13. Qe2 {[%emt 0:00:13]} Qxd4 {[%emt 0:00:49]} 14. Nc3 {[%emt 0:00:49]} Kd8 {[%emt 0:01:04]} 15. Rd1 {[%emt 0:00:08]} Bc4 {[%emt 0:03:38]} 16. Rxd4+ {[%emt 0:00:20]} Kc8 {[%emt 0:00:24]} 17. Qe8# {[%emt 0:00:13]} 1-0

[Event "DVM U10 2024"]
[Site "Duesseldorf"]
[Date "2024.12.27"]
[Round "3"]
[White "Wüstenberg, Felix"]
[Black "Sengupta, Arjun"]
[Result "1-0"]
[ECO "C50"]
[WhiteElo "975"]
[BlackElo "858"]
[Annotator "NA COMBH RC"]
[PlyCount "39"]
[EventDate "2024.12.23"]
[EventType "team-tourn"]
[EventRounds "7"]
[EventCountry "GER"]
[SourceTitle "playchess.com"]
[Source "ChessBase"]
[SourceQuality "1"]
[TimeControl "3300+5"]

1. e4 {[%emt 0:00:00]} e5 {[%emt 0:00:10]} 2. Nf3 {[%emt 0:00:04]} Nc6 {[%emt 0:00:10]} 3. Bc4 {[%emt 0:00:06]} Nf6 {[%emt 0:00:12]} 4. Nc3 {[%emt 0:00:07]} Bc5 {[%emt 0:00:38]} 5. d3 {[%emt 0:00:05]} d6 {[%emt 0:00:06]} 6. Bg5 {[%emt 0:00:04]} Be6 {[%emt 0:00:20]} 7. Bb3 {[%emt 0:00:07]} h6 {[%emt 0:00:11]} 8. Be3 {[%emt 0:00:08]} Bb6 {[%emt 0:00:02]} 9. O-O {[%emt 0:00:11]} Nd4 {[%emt 0:00:43]} 10. Qd2 {[%emt 0:00:46]} Nxf3+ {[%emt 0:00:13]} 11. gxf3 {[%emt 0:00:08]} a6 {[%emt 0:00:50]} 12. Kh1 {[%emt 0:00:57]} Bh3 {[%emt 0:00:35]} 13. Rg1 {[%emt 0:00:12]} O-O {[%emt 0:00:20]} 14. Bxh6 {[%emt 0:00:09]} Ba7 {[%emt 0:00:40]} 15. Qg5 {[%emt 0:00:15]} Nh5 {[%emt 0:01:05]} 16. Qxh5 {[%emt 0:00:26]} Qf6 {[%emt 0:00:10]} 17. Rxg7+ {[%emt 0:00:30]} Kh8 {[%emt 0:00:37]} 18. Rg3 {[%emt 0:00:10]} Rg8 {[%emt 0:00:20]} 19. Bf4+ {[%emt 0:00:11]} Qh6 {[%emt 0:02:48] Check Result:?ev?} 20. Qxh6# {[%emt 0:00:22]} 1-0

[Event "DVM U10 2024"]
[Site "Duesseldorf"]
[Date "2024.12.27"]
[Round "3"]
[White "Roppel, Alexander"]
[Black "Roessling, Johannes"]
[Result "0-1"]
[ECO "C58"]
[WhiteElo "954"]
[BlackElo "1618"]
[Annotator "NA RC"]
[PlyCount "48"]
[EventDate "2024.12.23"]
[EventType "team-tourn"]
[EventRounds "7"]
[EventCountry "GER"]
[SourceTitle "playchess.com"]
[Source "ChessBase"]
[SourceQuality "1"]
[TimeControl "3300+5"]

1. e4 {[%emt 0:00:03]} e5 {[%emt 0:00:04]} 2. Nf3 {[%emt 0:00:03]} Nc6 {[%emt 0:00:06]} 3. Bc4 {[%emt 0:00:07]} Nf6 {[%emt 0:00:34]} 4. Ng5 {[%emt 0:00:16]} d5 {[%emt 0:00:47]} 5. exd5 {[%emt 0:00:09]} Na5 {[%emt 0:00:08]} 6. Bb5+ {[%emt 0:00:20]} c6 {[%emt 0:00:06]} 7. dxc6 {[%emt 0:00:10]} bxc6 {[%emt 0:00:07]} 8. Qf3 {[%emt 0:00:15]} Bd7 {[%emt 0:03:51]} 9. Qe3 {[%emt 0:00:15]} cxb5 {[%emt 0:01:51]} 10. Qxe5+ {[%emt 0:00:16]} Be7 {[%emt 0:00:07]} 11. Qf4 {[%emt 0:00:20]} O-O {[%emt 0:01:21]} 12. Qg3 {[%emt 0:00:28]} Re8 {[%emt 0:00:30]} 13. d3 {[%emt 0:00:52]} Bd6+ {[%emt 0:00:08]} 14. Qe3 {[%emt 0:00:57]} Rxe3+ {[%emt 0:00:25]} 15. fxe3 {[%emt 0:00:03]} Ng4 {[%emt 0:00:30]} 16. e4 {[%emt 0:00:19]} Bxh2 {[%emt 0:00:51]} 17. Rf1 {[%emt 0:00:17]} Bg3+ {[%emt 0:00:19]} 18. Kd1 {[%emt 0:00:06]} Nf2+ {[%emt 0:00:29]} 19. Ke1 {[%emt 0:00:13]} Nxe4+ {[%emt 0:00:29]} 20. Kd1 {[%emt 0:00:30]} Nxg5 {[%emt 0:01:23]} 21. Rh1 {[%emt 0:00:24]} Bg4+ {[%emt 0:00:24]} 22. Kd2 {[%emt 0:00:14]} b4 {[%emt 0:01:38]} 23. c3 {[%emt 0:00:18]} b3 {[%emt 0:00:22]} 24. a3 {[%emt 0:00:08]} Nc4# {[%emt 0:00:33]} 0-1

[Event "DVM U10 2024"]
[Site "Duesseldorf"]
[Date "2024.12.27"]
[Round "3"]
[White "Najjar, Anton"]
[Black "Baasch, Julius"]
[Result "1-0"]
[ECO "B01"]
[WhiteElo "933"]
[BlackElo "774"]
[Annotator "NA RC"]
[PlyCount "55"]
[EventDate "2024.12.23"]
[EventType "team-tourn"]
[EventRounds "7"]
[EventCountry "GER"]
[SourceTitle "playchess.com"]
[Source "ChessBase"]
[SourceQuality "1"]
[TimeControl "3300+5"]

1. e4 {[%emt 0:00:02]} d5 {[%emt 0:00:09]} 2. exd5 {[%emt 0:00:03]} Qxd5 {[%emt 0:00:24]} 3. Nc3 {[%emt 0:00:09]} Qa5 {[%emt 0:00:13]} 4. Nf3 {[%emt 0:00:08]} c6 {[%emt 0:00:12]} 5. d4 {[%emt 0:00:07]} Nf6 {[%emt 0:00:22]} 6. Bc4 {[%emt 0:00:27]} Bf5 {[%emt 0:00:14]} 7. O-O {[%emt 0:00:06]} e6 {[%emt 0:00:17]} 8. Re1 {[%emt 0:00:10]} Bd6 {[%emt 0:00:53]} 9. d5 {[%emt 0:00:45]} cxd5 {[%emt 0:00:00]} 10. Nxd5 {[%emt 0:00:08]} Nc6 {[%emt 0:00:40]} 11. Ne3 {[%emt 0:00:17]} O-O {[%emt 0:00:26]} 12. Qxd6 {[%emt 0:00:17]} Rad8 {[%emt 0:01:18]} 13. Qg3 {[%emt 0:00:45]} Nd4 {[%emt 0:01:31]} 14. Rf1 {[%emt 0:00:43]} Nxc2 {[%emt 0:00:37]} 15. Nxc2 {[%emt 0:00:55]} Bxc2 {[%emt 0:00:25]} 16. Bh6 {[%emt 0:01:07]} Nh5 {[%emt 0:00:49]} 17. Qg5 {[%emt 0:01:05]} Qxg5 {[%emt 0:00:54]} 18. Bxg5 {[%emt 0:00:03]} Rc8 {[%emt 0:01:01]} 19. Be2 {[%emt 0:00:26]} h6 {[%emt 0:01:08]} 20. Be3 {[%emt 0:00:15]} Be4 {[%emt 0:04:50]} 21. Bxa7 {[%emt 0:00:35]} Rc2 {[%emt 0:01:23]} 22. Bd1 {[%emt 0:00:31]} Rxb2 {[%emt 0:00:29]} 23. Bd4 {[%emt 0:00:23]} Rb4 {[%emt 0:00:41]} 24. Bc5 {[%emt 0:00:00]} Rc4 {[%emt 0:00:35]} 25. Bxf8 {[%emt 0:00:11]} Kxf8 {[%emt 0:00:36]} 26. Nd2 {[%emt 0:00:10]} Rd4 {[%emt 0:01:27]} 27. Nxe4 {[%emt 0:00:00]} Rxe4 {[%emt 0:00:15]} 28. Bxh5 {[%emt 0:00:12]} 1-0

[Event "DVM U10 2024"]
[Site "Duesseldorf"]
[Date "2024.12.27"]
[Round "3"]
[White "Ramkumar, Dhuruvan"]
[Black "Baskurt, Ayaz"]
[Result "1/2-1/2"]
[ECO "B12"]
[WhiteElo "924"]
[BlackElo "903"]
[Annotator "NA RC"]
[PlyCount "45"]
[EventDate "2024.12.23"]
[EventType "team-tourn"]
[EventRounds "7"]
[EventCountry "GER"]
[SourceTitle "playchess.com"]
[Source "ChessBase"]
[SourceQuality "1"]
[TimeControl "3300+5"]

1. e4 {[%emt 0:00:03]} c6 {[%emt 0:00:06]} 2. d4 {[%emt 0:00:27]} d5 {[%emt 0:00:28]} 3. e5 {[%emt 0:01:42]} Bf5 {[%emt 0:00:13]} 4. Nf3 {[%emt 0:00:56]} e6 {[%emt 0:00:20]} 5. a3 {[%emt 0:00:57]} Nd7 {[%emt 0:01:49]} 6. Nc3 {[%emt 0:00:21]} c5 {[%emt 0:00:18]} 7. Be3 {[%emt 0:01:35]} cxd4 {[%emt 0:00:52]} 8. Bxd4 {[%emt 0:00:35]} Bc5 {[%emt 0:00:41]} 9. Bb5 {[%emt 0:02:07]} Bxd4 {[%emt 0:01:23]} 10. Qxd4 {[%emt 0:02:11]} a6 {[%emt 0:02:05]} 11. Ba4 {[%emt 0:02:41]} Ne7 {[%emt 0:02:01]} 12. O-O {[%emt 0:01:01]} O-O {[%emt 0:00:14]} 13. Rfe1 {[%emt 0:03:02]} Rc8 {[%emt 0:05:34]} 14. Qa7 {[%emt 0:08:51]} Rc7 {[%emt 0:01:16]} 15. Bxd7 {[%emt 0:02:46]} Rxd7 {[%emt 0:01:25]} 16. Rac1 {[%emt 0:01:32]} d4 {[%emt 0:00:51]} 17. Na2 {[%emt 0:01:26]} Nc6 {[%emt 0:02:58]} 18. Qc5 {[%emt 0:01:42]} Rd5 {[%emt 0:01:57]} 19. Qc4 {[%emt 0:03:21]} Na5 {[%emt 0:00:23]} 20. Qb4 {[%emt 0:02:03]} Nc6 {[%emt 0:00:43]} 21. Qxb7 {[%emt 0:00:42]} Qc8 {[%emt 0:01:15]} 22. Qxc8 {[%emt 0:00:27]} Rxc8 {[%emt 0:00:21]} 23. c4 {[%emt 0:02:49]} 1/2-1/2